[Event "SS Manhem Chess Week GM and IM tournaments 2018"]
[Site "Molnlycke kulturhus, Biblioteksgatan 2, Molnlycke, Sweden"]
[Date "2018.08.12"]
[Round "2.10"]
[White "Ernst, Thomas"]
[Black "Antonsen, Mikkel"]
[Result "1-0"]
[TimeControl "90 minutes for 40 moves + 30 minutes for the rest of the game + 30 seconds per move from move one."]
[WhiteTitle "GM"]
[BlackTitle "IM"]
[WhiteFideId "1700065"]
[BlackFideId "1401378"]
[WhiteElo "2346"]
[BlackElo "2444"]

1. e4 {[%clk 01:30:55]} {[%emt 00:00:04]} e5 {[%clk 01:30:58]} {[%emt
00:00:03]} 2. Nf3 {[%clk 01:31:16]} {[%emt 00:00:09]} Nc6 {[%clk 01:31:24]}
{[%emt 00:00:04]} 3. Bb5 {[%clk 01:31:33]} {[%emt 00:00:13]} Nf6 {[%clk
01:31:48]} {[%emt 00:00:06]} 4. d3 {[%clk 01:31:55]} {[%emt 00:00:08]} Bc5
{[%clk 01:32:07]} {[%emt 00:00:10]} 5. O-O {[%clk 01:32:03]} {[%emt 00:00:23]}
Nd4 {[%clk 01:31:51]} {[%emt 00:00:47]} 6. Nxd4 {[%clk 01:32:21]} {[%emt
00:00:12]} Bxd4 {[%clk 01:32:17]} {[%emt 00:00:04]} 7. c3 {[%clk 01:32:37]}
{[%emt 00:00:14]} Bb6 {[%clk 01:32:43]} {[%emt 00:00:04]} 8. Nd2 {[%clk
01:32:23]} {[%emt 00:00:44]} c6 {[%clk 01:32:47]} {[%emt 00:00:26]} 9. Ba4
{[%clk 01:32:47]} {[%emt 00:00:06]} d6 {[%clk 01:33:02]} {[%emt 00:00:15]} 10.
Nc4 {[%clk 01:32:04]} {[%emt 00:01:12]} Bc7 {[%clk 01:33:14]} {[%emt 00:00:19]}
11. Ne3 {[%clk 01:32:22]} {[%emt 00:00:12]} O-O {[%clk 01:31:46]} {[%emt
00:01:59]} 12. Qf3 {[%clk 01:32:30]} {[%emt 00:00:19]} Be6 {[%clk 01:18:44]}
{[%emt 00:13:33]} 13. Nf5 {[%clk 01:32:16]} {[%emt 00:00:45]} Nd7 {[%clk
01:15:06]} {[%emt 00:04:08]} 14. Bc2 {[%clk 01:29:15]} {[%emt 00:03:31]} Qf6
{[%clk 01:07:14]} {[%emt 00:08:22]} 15. g4 {[%clk 01:29:24]} {[%emt 00:00:19]}
Kh8 {[%clk 01:05:22]} {[%emt 00:02:23]} 16. Qg3 {[%clk 01:25:32]} {[%emt
00:04:21]} g6 {[%clk 01:02:03]} {[%emt 00:03:51]} 17. g5 {[%clk 01:18:59]}
{[%emt 00:07:00]} Qd8 {[%clk 01:02:27]} {[%emt 00:00:07]} 18. Nh6 {[%clk
01:19:23]} {[%emt 00:00:06]} f5 {[%clk 00:55:49]} {[%emt 00:07:08]} 19. f4
{[%clk 01:18:51]} {[%emt 00:01:00]} d5 {[%clk 00:51:47]} {[%emt 00:04:35]} 20.
exf5 {[%clk 01:14:11]} {[%emt 00:05:09]} Bxf5 {[%clk 00:45:27]} {[%emt
00:06:50]} 21. Be3 {[%clk 01:10:32]} {[%emt 00:04:08]} Qe7 {[%clk 00:33:35]}
{[%emt 00:12:23]} 22. Rae1 {[%clk 01:08:18]} {[%emt 00:02:43]} Qg7 {[%clk
00:33:02]} {[%emt 00:01:04]} 23. fxe5 {[%clk 01:04:19]} {[%emt 00:04:29]} Bxe5
{[%clk 00:33:25]} {[%emt 00:00:08]} 24. Bf4 {[%clk 01:04:15]} {[%emt 00:00:33]}
Rae8 {[%clk 00:31:41]} {[%emt 00:02:15]} 25. Bxe5 {[%clk 00:51:08]} {[%emt
00:13:37]} Rxe5 {[%clk 00:30:15]} {[%emt 00:01:57]} 26. Rxe5 {[%clk 00:49:46]}
{[%emt 00:01:52]} Qxe5 {[%clk 00:30:31]} {[%emt 00:00:14]} 27. Qxe5+ {[%clk
00:47:56]} {[%emt 00:02:20]} Nxe5 {[%clk 00:30:56]} {[%emt 00:00:05]} 28. d4
{[%clk 00:45:57]} {[%emt 00:02:28]} Nc4 {[%clk 00:31:16]} {[%emt 00:00:11]} 29.
Nxf5 {[%clk 00:44:49]} {[%emt 00:01:38]} gxf5 {[%clk 00:31:40]} {[%emt
00:00:06]} 30. Rxf5 {[%clk 00:45:12]} {[%emt 00:00:07]} Rxf5 {[%clk 00:31:48]}
{[%emt 00:00:22]} 31. Bxf5 {[%clk 00:45:34]} {[%emt 00:00:07]} Nxb2 {[%clk
00:31:45]} {[%emt 00:00:33]} 32. Bc2 {[%clk 00:45:35]} {[%emt 00:00:27]} Nc4
{[%clk 00:29:13]} {[%emt 00:03:03]} 33. Kf2 {[%clk 00:45:20]} {[%emt 00:00:45]}
Kg7 {[%clk 00:28:44]} {[%emt 00:01:00]} 34. Kf3 {[%clk 00:41:17]} {[%emt
00:04:32]} a5 {[%clk 00:25:24]} {[%emt 00:03:52]} 35. Kf4 {[%clk 00:28:53]}
{[%emt 00:12:53]} b5 {[%clk 00:25:42]} {[%emt 00:00:12]} 36. h4 {[%clk
00:28:36]} {[%emt 00:00:47]} a4 {[%clk 00:26:00]} {[%emt 00:00:13]} 37. Bf5
{[%clk 00:26:24]} {[%emt 00:02:40]} a3 {[%clk 00:23:14]} {[%emt 00:03:18]} 38.
Bd7 {[%clk 00:15:28]} {[%emt 00:11:24]} Na5 {[%clk 00:19:55]} {[%emt 00:03:51]}
39. h5 {[%clk 00:07:07]} {[%emt 00:08:50]} h6 {[%clk 00:20:05]} {[%emt
00:00:21]} 40. Kg4 {[%clk 00:05:43]} {[%emt 00:01:53]} hxg5 {[%clk 00:09:41]}
{[%emt 00:10:55]} 41. Kxg5 {[%clk 00:05:29]} {[%emt 00:00:44]} Kh7 {[%clk
00:09:07]} {[%emt 00:01:04]} 42. h6 {[%clk 00:26:30]} {[%emt 00:09:29]} Nc4
{[%clk 00:36:10]} {[%emt 00:03:27]} 43. Bxc6 {[%clk 00:26:41]} {[%emt
00:00:19]} Ne3 {[%clk 00:36:35]} {[%emt 00:00:05]} 44. Bxb5 {[%clk 00:26:37]}
{[%emt 00:00:34]} Nd1 {[%clk 00:36:54]} {[%emt 00:00:11]} 45. Bd3+ {[%clk
00:23:55]} {[%emt 00:03:11]} Kh8 {[%clk 00:37:21]} {[%emt 00:00:03]} 46. c4
{[%clk 00:24:05]} {[%emt 00:00:19]} Nb2 {[%clk 00:37:43]} {[%emt 00:00:09]} 47.
cxd5 {[%clk 00:23:43]} {[%emt 00:00:53]} Nxd3 {[%clk 00:38:05]} {[%emt
00:00:08]} 48. d6 {[%clk 00:24:05]} {[%emt 00:00:07]} 1-0

[Event "SS Manhem Chess Week GM and IM tournaments 2018"]
[Site "Molnlycke kulturhus, Biblioteksgatan 2, Molnlycke, Sweden"]
[Date "2018.08.12"]
[Round "3.1"]
[White "Johansson, Linus"]
[Black "Brynell, Stellan"]
[Result "1-0"]
[TimeControl "90 minutes for 40 moves + 30 minutes for the rest of the game + 30 seconds per move from move one."]
[WhiteTitle "IM"]
[BlackTitle "GM"]
[WhiteFideId "1711113"]
[BlackFideId "1700219"]
[WhiteElo "2457"]
[BlackElo "2391"]

1. c4 {[%clk 01:30:57]} {[%emt 00:00:02]} c5 {[%clk 01:27:41]} {[%emt
00:03:19]} 2. Nc3 {[%clk 01:30:23]} {[%emt 00:01:04]} Nc6 {[%clk 01:27:22]}
{[%emt 00:00:48]} 3. g3 {[%clk 01:30:34]} {[%emt 00:00:20]} g6 {[%clk
01:27:35]} {[%emt 00:00:17]} 4. Bg2 {[%clk 01:30:57]} {[%emt 00:00:06]} Bg7
{[%clk 01:28:01]} {[%emt 00:00:05]} 5. Nf3 {[%clk 01:31:00]} {[%emt 00:00:28]}
Nf6 {[%clk 01:25:26]} {[%emt 00:03:05]} 6. O-O {[%clk 01:30:23]} {[%emt
00:01:07]} O-O {[%clk 01:25:27]} {[%emt 00:00:29]} 7. d4 {[%clk 01:30:23]}
{[%emt 00:00:30]} cxd4 {[%clk 01:25:06]} {[%emt 00:00:50]} 8. Nxd4 {[%clk
01:30:47]} {[%emt 00:00:06]} Nxd4 {[%clk 01:23:26]} {[%emt 00:02:11]} 9. Qxd4
{[%clk 01:31:11]} {[%emt 00:00:06]} d6 {[%clk 01:23:51]} {[%emt 00:00:05]} 10.
Qh4 {[%clk 01:24:16]} {[%emt 00:07:24]} Rb8 {[%clk 00:51:38]} {[%emt 00:32:44]}
11. Bh6 {[%clk 01:21:12]} {[%emt 00:03:34]} Be6 {[%clk 00:41:33]} {[%emt
00:10:35]} 12. Bxg7 {[%clk 01:19:58]} {[%emt 00:01:44]} Kxg7 {[%clk 00:42:01]}
{[%emt 00:00:02]} 13. Qd4 {[%clk 01:13:40]} {[%emt 00:06:48]} Qc7 {[%clk
00:41:48]} {[%emt 00:00:43]} 14. b3 {[%clk 01:13:45]} {[%emt 00:00:24]} Qc5
{[%clk 00:40:33]} {[%emt 00:01:45]} 15. Qxc5 {[%clk 01:12:46]} {[%emt
00:01:30]} dxc5 {[%clk 00:41:02]} {[%emt 00:00:02]} 16. Rfd1 {[%clk 01:12:33]}
{[%emt 00:00:42]} Rfc8 {[%clk 00:37:39]} {[%emt 00:03:53]} 17. e4 {[%clk
01:05:41]} {[%emt 00:07:22]} Nd7 {[%clk 00:29:27]} {[%emt 00:08:42]} 18. Nd5
{[%clk 01:06:01]} {[%emt 00:00:09]} Bxd5 {[%clk 00:29:02]} {[%emt 00:00:56]} 19.
cxd5 {[%clk 01:04:40]} {[%emt 00:01:52]} Rc7 {[%clk 00:23:14]} {[%emt
00:06:18]} 20. Bh3 {[%clk 01:02:25]} {[%emt 00:02:44]} b5 {[%clk 00:21:18]}
{[%emt 00:02:26]} 21. Bxd7 {[%clk 01:02:38]} {[%emt 00:00:18]} Rxd7 {[%clk
00:21:41]} {[%emt 00:00:07]} 22. Rac1 {[%clk 01:03:00]} {[%emt 00:00:08]} Rc8
{[%clk 00:21:45]} {[%emt 00:00:26]} 23. Kf1 {[%clk 01:01:53]} {[%emt 00:01:36]}
Kf8 {[%clk 00:17:40]} {[%emt 00:04:36]} 24. Ke2 {[%clk 01:02:13]} {[%emt
00:00:10]} Ke8 {[%clk 00:17:57]} {[%emt 00:00:13]} 25. Rc3 {[%clk 01:00:39]}
{[%emt 00:02:03]} h5 {[%clk 00:13:17]} {[%emt 00:05:09]} 26. Rdc1 {[%clk
01:00:03]} {[%emt 00:01:07]} Rdc7 {[%clk 00:13:40]} {[%emt 00:00:07]} 27. Ke3
{[%clk 00:58:16]} {[%emt 00:02:16]} Kd7 {[%clk 00:12:18]} {[%emt 00:01:52]} 28.
e5 {[%clk 00:56:47]} {[%emt 00:01:59]} f6 {[%clk 00:11:09]} {[%emt 00:01:39]}
29. f4 {[%clk 00:57:08]} {[%emt 00:00:09]} a6 {[%clk 00:07:00]} {[%emt
00:04:40]} 30. Ke4 {[%clk 00:51:32]} {[%emt 00:06:06]} f5+ {[%clk 00:04:39]}
{[%emt 00:02:51]} 31. Ke3 {[%clk 00:48:21]} {[%emt 00:03:40]} Ke8 {[%clk
00:04:39]} {[%emt 00:00:31]} 32. R3c2 {[%clk 00:44:15]} {[%emt 00:04:36]} Kd7
{[%clk 00:03:55]} {[%emt 00:01:13]} 33. h3 {[%clk 00:40:19]} {[%emt 00:04:26]}
Ke8 {[%clk 00:02:27]} {[%emt 00:01:59]} 34. e6 {[%clk 00:39:03]} {[%emt
00:01:45]} Kf8 {[%clk 00:01:51]} {[%emt 00:01:06]} 35. g4 {[%clk 00:39:24]}
{[%emt 00:00:08]} hxg4 {[%clk 00:01:14]} {[%emt 00:01:08]} 36. hxg4 {[%clk
00:39:48]} {[%emt 00:00:06]} fxg4 {[%clk 00:01:06]} {[%emt 00:00:38]} 37. Rg1
{[%clk 00:27:53]} {[%emt 00:12:24]} c4 {[%clk 00:00:53]} {[%emt 00:00:43]} 38.
Rxg4 {[%clk 00:25:23]} {[%emt 00:03:00]} cxb3 {[%clk 00:00:48]} {[%emt
00:00:36]} 39. Rxc7 {[%clk 00:25:33]} {[%emt 00:00:20]} Rxc7 {[%clk 00:01:17]}
40. axb3 {[%clk 00:25:52]} {[%emt 00:00:10]} a5 {[%clk 00:00:38]} {[%emt
00:01:10]} 41. Rxg6 {[%clk 00:16:24]} {[%emt 00:09:57]} Rc1 {[%clk 00:16:57]}
{[%emt 00:14:10]} 42. Rg2 {[%clk 00:33:35]} {[%emt 00:13:18]} a4 {[%clk
00:11:28]} {[%emt 00:06:02]} 43. bxa4 {[%clk 00:33:34]} {[%emt 00:00:31]} bxa4
{[%clk 00:11:53]} {[%emt 00:00:04]} 44. d6 {[%clk 00:22:41]} {[%emt 00:11:23]}
exd6 {[%clk 00:10:04]} {[%emt 00:02:19]} 45. f5 {[%clk 00:22:56]} {[%emt
00:00:14]} Rf1 {[%clk 00:08:27]} {[%emt 00:02:07]} 46. Ke4 {[%clk 00:22:27]}
{[%emt 00:00:59]} a3 {[%clk 00:07:15]} {[%emt 00:01:42]} 47. Kd5 {[%clk
00:19:38]} {[%emt 00:03:19]} Rd1+ {[%clk 00:02:57]} {[%emt 00:04:47]} 48. Kc6
{[%clk 00:19:42]} {[%emt 00:00:26]} Ke7 {[%clk 00:03:12]} {[%emt 00:00:15]} 49.
Rg7+ {[%clk 00:15:38]} {[%emt 00:04:35]} Kf6 {[%clk 00:03:41]} 50. Rf7 {[%clk
00:16:01]} {[%emt 00:00:07]} Kg5 {[%clk 00:04:07]} {[%emt 00:00:05]} 51. Ra7
{[%clk 00:16:26]} {[%emt 00:00:05]} Kxf5 {[%clk 00:02:12]} {[%emt 00:02:25]} 52.
Kd7 {[%clk 00:16:10]} {[%emt 00:00:46]} Re1 {[%clk 00:00:49]} {[%emt 00:01:53]}
53. e7 {[%clk 00:16:10]} {[%emt 00:00:30]} d5 {[%clk 00:01:07]} {[%emt
00:00:12]} 54. Rxa3 {[%clk 00:15:23]} {[%emt 00:01:17]} d4 {[%clk 00:00:39]}
{[%emt 00:00:57]} 55. Rf3+ {[%emt 00:01:05]} 1-0

[Event "SS Manhem Chess Week GM and IM tournaments 2018"]
[Site "Molnlycke kulturhus, Biblioteksgatan 2, Molnlycke, Sweden"]
[Date "2018.08.12"]
[Round "3.3"]
[White "Christiansen, Johan-Sebastian"]
[Black "Lindberg, Bengt"]
[Result "1/2-1/2"]
[TimeControl "90 minutes for 40 moves + 30 minutes for the rest of the game + 30 seconds per move from move one."]
[WhiteTitle "IM"]
[BlackTitle "IM"]
[WhiteFideId "1512668"]
[BlackFideId "1700359"]
[WhiteElo "2515"]
[BlackElo "2416"]

1. Nf3 {[%clk 01:30:57]} {[%emt 00:00:03]} Nf6 {[%clk 01:30:31]} {[%emt
00:00:29]} 2. c4 {[%clk 01:31:18]} {[%emt 00:00:10]} e6 {[%clk 01:29:41]}
{[%emt 00:01:18]} 3. g3 {[%clk 01:31:42]} {[%emt 00:00:06]} d5 {[%clk
01:29:49]} {[%emt 00:00:22]} 4. Bg2 {[%clk 01:32:05]} {[%emt 00:00:07]} Be7
{[%clk 01:30:00]} {[%emt 00:00:19]} 5. d4 {[%clk 01:32:26]} {[%emt 00:00:10]}
O-O {[%clk 01:30:02]} {[%emt 00:00:26]} 6. Qc2 {[%clk 01:32:49]} {[%emt
00:00:09]} c5 {[%clk 01:29:58]} {[%emt 00:00:34]} 7. dxc5 {[%clk 01:31:55]}
{[%emt 00:01:25]} Qa5+ {[%clk 01:27:34]} {[%emt 00:02:52]} 8. Nc3 {[%clk
01:32:12]} {[%emt 00:00:15]} Qxc5 {[%clk 01:20:35]} {[%emt 00:07:28]} 9. cxd5
{[%clk 01:24:39]} {[%emt 00:08:05]} Nxd5 {[%clk 01:20:51]} {[%emt 00:00:13]} 10.
Bd2 {[%clk 01:21:05]} {[%emt 00:04:04]} Nxc3 {[%clk 01:18:03]} {[%emt
00:03:18]} 11. Bxc3 {[%clk 01:16:43]} {[%emt 00:04:53]} Nc6 {[%clk 01:11:49]}
{[%emt 00:06:44]} 12. Rc1 {[%clk 01:14:28]} {[%emt 00:02:45]} e5 {[%clk
00:44:27]} {[%emt 00:27:52]} 13. O-O {[%clk 01:04:21]} {[%emt 00:10:37]} Be6
{[%clk 00:43:32]} {[%emt 00:01:24]} 14. b3 {[%clk 01:04:04]} {[%emt 00:00:48]}
f6 {[%clk 00:42:13]} {[%emt 00:01:48]} 15. e3 {[%clk 01:01:59]} {[%emt
00:02:35]} Rac8 {[%clk 00:39:27]} {[%emt 00:03:15]} 16. Qb1 {[%clk 00:58:00]}
{[%emt 00:04:30]} Qb5 {[%clk 00:39:16]} {[%emt 00:00:41]} 17. Bb2 {[%clk
00:54:44]} {[%emt 00:03:47]} Nb4 {[%clk 00:36:45]} {[%emt 00:03:01]} 18. Nh4
{[%clk 00:42:09]} {[%emt 00:13:05]} Qd3 {[%clk 00:29:02]} {[%emt 00:08:12]} 19.
Be4 {[%clk 00:31:37]} {[%emt 00:11:03]} Qxb1 {[%clk 00:29:04]} {[%emt
00:00:28]} 20. Bxb1 {[%clk 00:32:05]} {[%emt 00:00:03]} g6 {[%clk 00:28:47]}
{[%emt 00:00:46]} 21. Nf3 {[%clk 00:27:40]} {[%emt 00:04:56]} a5 {[%clk
00:26:39]} {[%emt 00:02:37]} 22. Rfd1 {[%clk 00:24:46]} {[%emt 00:03:24]} b5
{[%clk 00:22:02]} {[%emt 00:05:07]} 23. Ne1 {[%clk 00:19:41]} {[%emt 00:05:35]}
1/2-1/2

[Event "SS Manhem Chess Week GM and IM tournaments 2018"]
[Site "Molnlycke kulturhus, Biblioteksgatan 2, Molnlycke, Sweden"]
[Date "2018.08.12"]
[Round "3.4"]
[White "Sammalvuo, Tapani"]
[Black "Schneider, Stefan"]
[Result "1-0"]
[TimeControl "90 minutes for 40 moves + 30 minutes for the rest of the game + 30 seconds per move from move one."]
[WhiteTitle "IM"]
[BlackTitle "IM"]
[WhiteFideId "501115"]
[BlackFideId "1703013"]
[WhiteElo "2411"]
[BlackElo "2399"]

1. d4 {[%clk 01:30:57]} {[%emt 00:00:01]} Nf6 {[%clk 01:30:41]} {[%emt
00:00:19]} 2. c4 {[%clk 01:31:25]} {[%emt 00:00:03]} e6 {[%clk 01:30:39]}
{[%emt 00:00:33]} 3. Nf3 {[%clk 01:31:51]} {[%emt 00:00:03]} Bb4+ {[%clk
01:30:47]} {[%emt 00:00:22]} 4. Bd2 {[%clk 01:32:18]} {[%emt 00:00:03]} Qe7
{[%clk 01:30:15]} {[%emt 00:01:03]} 5. g3 {[%clk 01:32:44]} {[%emt 00:00:04]}
Nc6 {[%clk 01:29:24]} {[%emt 00:01:21]} 6. Nc3 {[%clk 01:33:11]} {[%emt
00:00:03]} O-O {[%clk 01:29:17]} {[%emt 00:00:38]} 7. Bg2 {[%clk 01:33:36]}
{[%emt 00:00:05]} Na5 {[%clk 01:28:45]} {[%emt 00:01:03]} 8. b3 {[%clk
01:34:02]} {[%emt 00:00:03]} b6 {[%clk 01:28:25]} {[%emt 00:00:50]} 9. Qc2
{[%clk 01:23:17]} {[%emt 00:11:15]} Bb7 {[%clk 01:28:45]} {[%emt 00:00:10]} 10.
O-O {[%clk 01:15:48]} {[%emt 00:07:59]} Rac8 {[%clk 01:18:57]} {[%emt
00:10:18]} 11. a3 {[%clk 01:16:10]} {[%emt 00:00:07]} Bxc3 {[%clk 01:18:00]}
{[%emt 00:01:27]} 12. Bxc3 {[%clk 01:16:36]} {[%emt 00:00:04]} Be4 {[%clk
01:17:09]} {[%emt 00:01:21]} 13. Qb2 {[%clk 01:16:25]} {[%emt 00:00:41]} Nb7
{[%clk 01:11:36]} {[%emt 00:06:04]} 14. Rfd1 {[%clk 01:04:18]} {[%emt
00:12:37]} d5 {[%clk 00:57:32]} {[%emt 00:14:34]} 15. cxd5 {[%clk 01:03:20]}
{[%emt 00:01:28]} Nxd5 {[%clk 00:49:06]} {[%emt 00:08:55]} 16. Bd2 {[%clk
01:02:31]} {[%emt 00:01:19]} c5 {[%clk 00:42:39]} {[%emt 00:06:57]} 17. Rac1
{[%clk 01:02:55]} {[%emt 00:00:06]} h6 {[%clk 00:35:24]} {[%emt 00:07:46]} 18.
dxc5 {[%clk 01:02:29]} {[%emt 00:00:55]} Nxc5 {[%clk 00:31:23]} {[%emt
00:04:31]} 19. b4 {[%clk 01:02:40]} {[%emt 00:00:19]} Nd7 {[%clk 00:19:59]}
{[%emt 00:11:54]} 20. Qd4 {[%clk 01:03:06]} {[%emt 00:00:04]} f5 {[%clk
00:19:29]} {[%emt 00:01:01]} 21. Bf1 {[%clk 01:01:49]} {[%emt 00:01:47]} Rfd8
{[%clk 00:13:25]} {[%emt 00:06:35]} 22. Nh4 {[%clk 00:56:35]} {[%emt 00:05:43]}
Bc2 {[%clk 00:11:54]} {[%emt 00:02:01]} 23. Re1 {[%clk 00:53:52]} {[%emt
00:03:13]} Qf6 {[%clk 00:12:22]} {[%emt 00:00:02]} 24. Nf3 {[%clk 00:52:40]}
{[%emt 00:01:41]} Be4 {[%clk 00:09:16]} {[%emt 00:03:37]} 25. Qxf6 {[%clk
00:52:19]} {[%emt 00:00:51]} N7xf6 {[%clk 00:06:59]} {[%emt 00:02:47]} 26. Nd4
{[%clk 00:44:42]} {[%emt 00:08:07]} Nc7 {[%clk 00:04:14]} {[%emt 00:03:14]} 27.
Bc3 {[%clk 00:43:08]} {[%emt 00:02:05]} b5 {[%clk 00:03:15]} {[%emt 00:01:30]}
28. Bb2 {[%clk 00:40:45]} {[%emt 00:02:52]} Kf7 {[%clk 00:01:25]} {[%emt
00:02:20]} 29. e3 {[%clk 00:40:15]} {[%emt 00:00:59]} a6 {[%clk 00:01:27]}
{[%emt 00:00:29]} 30. Nc6 {[%clk 00:40:20]} {[%emt 00:00:25]} Bxc6 {[%clk
00:01:22]} {[%emt 00:00:35]} 31. Rxc6 {[%clk 00:40:47]} {[%emt 00:00:02]} Nce8
{[%clk 00:00:48]} {[%emt 00:01:05]} 32. Rxa6 {[%clk 00:34:47]} {[%emt
00:06:29]} Rd2 {[%clk 00:00:38]} {[%emt 00:00:40]} 33. Re2 {[%clk 00:34:50]}
{[%emt 00:00:28]} Rd1 {[%clk 00:00:36]} {[%emt 00:00:32]} 34. f3 {[%clk
00:34:48]} {[%emt 00:00:31]} Nd5 {[%clk 00:00:37]} {[%emt 00:00:30]} 35. e4
{[%clk 00:34:05]} {[%emt 00:01:12]} fxe4 {[%clk 00:00:55]} {[%emt 00:00:13]} 36.
fxe4 {[%clk 00:34:29]} {[%emt 00:00:06]} Ndf6 {[%clk 00:00:57]} {[%emt
00:00:28]} 37. Rf2 {[%clk 00:32:00]} {[%emt 00:02:58]} Kg8 {[%clk 00:01:25]}
{[%emt 00:00:03]} 38. Rxe6 {[%clk 00:29:26]} {[%emt 00:03:03]} Ng4 {[%clk
00:01:22]} {[%emt 00:00:34]} 39. Re2 {[%clk 00:29:42]} {[%emt 00:00:14]} Nc7
{[%clk 00:00:42]} {[%emt 00:01:11]} 40. Re7 {[%clk 00:29:32]} {[%emt 00:00:39]}
Ne6 {[%clk 00:00:43]} {[%emt 00:00:30]} 41. Rxe6 {[%clk 00:25:30]} {[%emt
00:04:32]} Rf8 {[%clk 00:29:24]} {[%emt 00:01:49]} 42. Rg6 {[%clk 00:45:15]}
{[%emt 00:10:46]} Rdxf1+ {[%clk 00:17:11]} {[%emt 00:12:42]} 43. Kg2 {[%clk
00:45:34]} {[%emt 00:00:11]} R8f2+ {[%clk 00:15:20]} {[%emt 00:02:21]} 44. Rxf2
{[%clk 00:46:01]} {[%emt 00:00:03]} Rxf2+ {[%clk 00:15:39]} {[%emt 00:00:12]}
45. Kg1 {[%clk 00:46:05]} {[%emt 00:00:26]} Rxb2 {[%clk 00:15:53]} {[%emt
00:00:15]} 46. Rxg4 {[%clk 00:46:32]} {[%emt 00:00:03]} Ra2 {[%clk 00:14:13]}
{[%emt 00:02:11]} 47. Rf4 {[%clk 00:46:09]} {[%emt 00:00:53]} Rxa3 {[%clk
00:12:13]} {[%emt 00:02:30]} 48. Rf5 {[%clk 00:46:27]} {[%emt 00:00:11]} Ra1+
{[%clk 00:11:31]} {[%emt 00:01:12]} 49. Kf2 {[%clk 00:45:31]} {[%emt 00:01:26]}
Ra2+ {[%clk 00:11:59]} {[%emt 00:00:03]} 50. Kg1 {[%clk 00:44:11]} {[%emt
00:01:49]} Re2 {[%clk 00:09:28]} {[%emt 00:03:01]} 51. Re5 {[%clk 00:44:24]}
{[%emt 00:00:17]} Kf7 {[%clk 00:09:30]} {[%emt 00:00:27]} 52. h4 {[%clk
00:35:28]} {[%emt 00:09:25]} Kf6 {[%clk 00:08:53]} {[%emt 00:01:08]} 53. Rf5+
{[%clk 00:35:55]} {[%emt 00:00:03]} Ke6 {[%clk 00:08:35]} {[%emt 00:00:48]} 54.
Rxb5 {[%clk 00:36:18]} {[%emt 00:00:08]} Rxe4 {[%clk 00:08:06]} {[%emt
00:00:59]} 55. Kf2 {[%clk 00:36:29]} {[%emt 00:00:19]} Rc4 {[%clk 00:04:26]}
{[%emt 00:04:10]} 56. Kf3 {[%clk 00:33:09]} {[%emt 00:03:49]} Kf6 {[%clk
00:04:19]} {[%emt 00:00:38]} 57. Rb6+ {[%clk 00:33:29]} {[%emt 00:00:10]} Kf7
{[%clk 00:04:03]} {[%emt 00:00:46]} 58. h5 {[%clk 00:33:30]} {[%emt 00:00:29]}
Rc3+ {[%clk 00:03:07]} {[%emt 00:01:26]} 59. Kf4 {[%clk 00:32:58]} {[%emt
00:01:02]} Rb3 {[%clk 00:02:37]} {[%emt 00:01:00]} 60. g4 {[%clk 00:30:41]}
{[%emt 00:02:47]} Rb1 {[%clk 00:02:32]} {[%emt 00:00:36]} 61. Ke5 {[%clk
00:30:48]} {[%emt 00:00:22]} Re1+ {[%clk 00:01:39]} {[%emt 00:01:24]} 62. Kd5
{[%clk 00:29:55]} {[%emt 00:01:23]} Rb1 {[%clk 00:01:02]} {[%emt 00:01:07]} 63.
Kc5 {[%clk 00:29:42]} {[%emt 00:00:42]} Rc1+ {[%clk 00:00:48]} {[%emt
00:00:45]} 64. Kb5 {[%clk 00:30:02]} {[%emt 00:00:09]} g5 {[%clk 00:00:43]}
{[%emt 00:00:35]} 65. Rc6 {[%clk 00:27:30]} {[%emt 00:03:02]} Rg1 {[%clk
00:00:44]} {[%emt 00:00:29]} 66. Rc4 {[%clk 00:27:55]} {[%emt 00:00:04]} Ke6
{[%clk 00:00:31]} {[%emt 00:00:43]} 67. Kc6 {[%clk 00:27:51]} {[%emt 00:00:34]}
Rf1 {[%clk 00:00:43]} {[%emt 00:00:19]} 68. b5 {[%clk 00:27:30]} {[%emt
00:00:51]} Rf4 {[%clk 00:01:03]} {[%emt 00:00:10]} 69. Rxf4 {[%clk 00:27:32]}
{[%emt 00:00:28]} gxf4 {[%clk 00:01:29]} {[%emt 00:00:05]} 70. b6 {[%clk
00:27:57]} {[%emt 00:00:05]} f3 {[%clk 00:01:28]} {[%emt 00:00:31]} 71. b7
{[%clk 00:28:24]} {[%emt 00:00:03]} f2 {[%clk 00:01:51]} {[%emt 00:00:07]} 72.
b8=Q {[%clk 00:28:50]} {[%emt 00:00:05]} f1=Q {[%clk 00:01:54]} {[%emt
00:00:25]} 73. Qe8 {[%clk 00:29:12]} {[%emt 00:00:09]} Kf6 {[%clk 00:02:12]}
{[%emt 00:00:13]} 74. Qf8 {[%clk 00:29:38]} {[%emt 00:00:04]} 1-0

[Event "SS Manhem Chess Week GM and IM tournaments 2018"]
[Site "Molnlycke kulturhus, Biblioteksgatan 2, Molnlycke, Sweden"]
[Date "2018.08.12"]
[Round "3.5"]
[White "Vestby-Ellingsen, Mads"]
[Black "Gritsak, Orest"]
[Result "1/2-1/2"]
[TimeControl "90 minutes for 40 moves + 30 minutes for the rest of the game + 30 seconds per move from move one."]
[WhiteTitle "FM"]
[BlackTitle "GM"]
[WhiteFideId "1520857"]
[BlackFideId "14102188"]
[WhiteElo "2409"]
[BlackElo "2464"]

1. d4 {[%clk 01:30:53]} {[%emt 00:00:04]} Nf6 {[%clk 01:30:17]} {[%emt
00:00:45]} 2. Bf4 {[%clk 01:31:04]} {[%emt 00:00:18]} g6 {[%clk 01:24:31]}
{[%emt 00:06:17]} 3. Nc3 {[%clk 01:30:23]} {[%emt 00:01:10]} c6 {[%clk
01:21:07]} {[%emt 00:03:55]} 4. e4 {[%clk 01:25:35]} {[%emt 00:05:16]} d5
{[%clk 01:17:54]} {[%emt 00:03:45]} 5. e5 {[%clk 01:20:34]} {[%emt 00:05:30]}
Nh5 {[%clk 01:18:14]} {[%emt 00:00:11]} 6. Be3 {[%clk 01:20:09]} {[%emt
00:00:54]} Qb6 {[%clk 01:14:26]} {[%emt 00:04:20]} 7. Rb1 {[%clk 01:03:46]}
{[%emt 00:16:52]} Ng7 {[%clk 01:12:35]} {[%emt 00:02:20]} 8. Bh6 {[%clk
00:58:32]} {[%emt 00:05:42]} f6 {[%clk 01:04:33]} {[%emt 00:08:34]} 9. Nf3
{[%clk 00:53:07]} {[%emt 00:05:54]} Bg4 {[%clk 00:56:19]} {[%emt 00:08:44]} 10.
exf6 {[%clk 00:39:34]} {[%emt 00:14:03]} exf6 {[%clk 00:56:17]} {[%emt
00:00:33]} 11. Be2 {[%clk 00:27:08]} {[%emt 00:12:55]} Nf5 {[%clk 00:41:09]}
{[%emt 00:15:38]} 1/2-1/2